bitfinex/quotes_ETHUSD_20250219
["timestamp","ask_amount","ask_price","bid_price","bid_amount"]
[1739942884925,4.52782,2683.8,2683.3,0.0384]
[1739942885132,4.52782,2683.8,2683.5,0.74119997]
[1739942885624,3.72622,2683.7,2683.5,0.74119997]
[1739942886034,3.72633,2683.6,2683.5,0.74119997]
[1739942886243,4.51443,2683.6,2683.5,0.74119997]
[1739942887025,7.00364819,2683.6,2683.5,0.74119997]
[1739942887225,3.72674,2683.4,2683.2,0.271]
[1739942887540,3.72674,2683.4,2683.1,0.0384]
[1739942887713,3.72658,2683.5,2683.1,0.0384]
[1739942887918,5.48921819,2683.6,2683.1,0.0384]
[1739942888237,2.48921819,2683.6,2683.1,0.0384]
[1739942888446,2.48921819,2683.6,2683.3,0.74627924]
[1739942888621,6.21515819,2683.9,2683.4,0.0384]
[1739942889136,2.48921819,2683.9,2683.4,0.0384]
[1739942889342,6.7257,2684.1,2683.4,3.76488]
[1739942890440,10.45145,2684.1,2683.4,3.76488]
[1739942890742,3.72578,2684.0,2683.4,3.76488]
[1739942891347,10.45147,2684.1,2683.4,3.76488]
[1739942891553,7.45147,2684.1,2683.4,3.76488]
[1739942892253,3.72582,2684.0,2683.4,3.76488]
[1739942892626,2.48921819,2684.2,2683.4,3.76497]
[1739942892968,2.48921819,2684.2,2683.3,0.74627924]
[1739942892969,2.48921819,2684.2,2683.7,3.76459]
[1739942893169,2.48921819,2684.2,2683.8,3.72605]
[1739942893352,6.21433819,2684.5,2683.9,0.03725718]
[1739942893519,6.21433819,2684.5,2684.0,0.0384]
[1739942893719,9.93952819,2684.5,2684.0,0.0384]
[1739942894351,3.72532,2684.4,2684.0,0.0384]
[1739942894745,3.72536,2684.3,2684.0,0.0384]
[1739942895351,6.21433819,2684.5,2684.0,0.0384]
[1739942895557,3.72538,2684.3,2684.0,0.0384]
[1739942896552,3.7255,2684.2,2684.0,0.0384]
[1739942896929,3.72572,2684.1,2683.9,0.73486186]
[1739942897131,3.29391819,2684.2,2683.6,0.0384]
[1739942897335,3.29391819,2684.2,2683.2,0.0384]
[1739942897336,6.21550819,2683.7,2683.2,0.0384]
[1739942897524,6.21550819,2683.7,2683.3,0.0751821]
[1739942897723,6.21550819,2683.7,2683.2,0.0384]
[1739942898061,6.21550819,2683.7,2683.3,0.0752498]
[1739942898478,6.21550819,2683.7,2683.2,0.0384]
[1739942898679,6.21550819,2683.7,2683.5,0.73672927]
[1739942898981,2.48921819,2683.7,2683.6,0.07495783]
[1739942899344,6.21540819,2683.7,2683.6,0.07495783]
[1739942899568,6.21505819,2684.0,2683.6,0.07495783]
[1739942899742,7.50136,2684.1,2683.7,0.0384]
[1739942899942,6.72566,2684.1,2683.8,0.07494378]
[1739942900139,3.72592,2683.9,2683.7,0.0384]
[1739942900363,6.99393819,2683.9,2683.8,0.07494378]
[1739942900581,8.06591201,2683.9,2683.8,0.07494378]
[1739942900778,3.72614,2683.8,2683.5,0.73672927]
[1739942901384,3.72614,2683.8,2683.6,0.07513839]
[1739942902285,3.72619,2683.7,2683.6,0.07513839]
[1739942902645,4.55409,2683.7,2683.6,0.07513839]
[1739942902846,4.55409,2683.7,2682.9,5.36]
[1739942902847,3.7271,2683.1,2682.9,5.36]
[1739942903181,6.21604819,2683.3,2683.0,0.83109469]
[1739942903590,3.72692,2683.2,2683.0,0.83109469]
[1739942904146,7.45391,2683.2,2683.0,0.83109469]
[1739942904351,3.72692,2683.2,2683.0,0.83109469]
[1739942906583,3.72668,2683.4,2683.0,0.83109469]
[1739942906785,3.7268,2683.3,2683.0,0.83109469]
[1739942907786,3.72701,2683.2,2683.0,0.83109469]
[1739942907969,3.727,2683.2,2683.0,0.83109469]
[1739942908374,9.94319819,2683.2,2683.0,0.83109469]
[1739942908551,6.21619819,2683.2,2683.0,0.83109469]
[1739942910081,3.7268,2683.3,2683.0,0.83109469]
[1739942910675,3.72671,2683.4,2683.0,0.83109469]
[1739942910676,3.7269,2683.2,2683.0,0.83109469]
[1739942911054,3.72671,2683.4,2683.0,0.83109469]
[1739942911692,7.04361819,2683.5,2683.0,0.83109469]
[1739942911904,2.48921819,2683.5,2683.1,0.0384]
[1739942912253,2.48921819,2683.5,2683.2,0.07618239]
[1739942912811,6.21533819,2683.8,2683.3,3.72673]
[1739942913102,6.21533819,2683.8,2683.4,0.0384]
[1739942913295,2.48921819,2683.8,2683.4,0.11437643]
[1739942913452,6.21527819,2683.8,2683.5,0.07587346]
[1739942913858,3.72631,2683.7,2683.5,0.07587346]
[1739942914658,3.72633,2683.6,2683.5,0.07587346]
[1739942914860,2.48921819,2683.8,2683.4,3.7266]
[1739942915061,6.21527819,2683.8,2683.5,0.07576622]
[1739942915363,6.21527819,2683.8,2683.5,0.73007261]
[1739942915594,6.21527819,2683.8,2683.6,0.0756689]
[1739942915794,9.94146819,2683.8,2683.6,0.0756689]
[1739942916300,3.72619,2683.7,2683.6,0.0756689]
[1739942916892,6.72619,2683.7,2683.6,0.0756689]
[1739942917060,6.72619,2683.7,2683.2,0.0384]
[1739942917061,8.09627682,2683.7,2683.3,0.76481663]
[1739942917261,2.48921819,2683.5,2683.4,0.07584097]
[1739942917473,6.21576819,2683.5,2683.4,0.07584097]
[1739942917674,6.21576819,2683.5,2683.1,5.36]
[1739942917675,9.94236819,2683.5,2683.1,5.36]
[1739942917996,6.21576819,2683.5,2683.2,0.07603563]
[1739942918500,6.21576819,2683.5,2683.2,0.73582592]
[1739942918799,9.94177819,2683.7,2683.3,0.07576894]
[1739942919098,6.21545819,2683.7,2683.2,4.46269592]
[1739942919267,2.48921819,2683.7,2683.3,0.0384]
[1739942919785,2.48921819,2683.7,2683.4,0.07572241]
[1739942922413,2.48921819,2683.7,2683.4,0.11298477]
[1739942922715,2.48921819,2683.7,2683.4,0.07572241]
[1739942924713,3.72596,2683.9,2683.4,0.07572241]
[1739942925297,3.72596,2683.9,2683.4,3.80232241]
[1739942925627,6.31771819,2684.0,2683.5,3.72637]
[1739942925628,2.48921819,2684.0,2683.5,3.72637]
[1739942925799,3.27381819,2684.3,2683.6,0.0384]
[1739942926122,4.00913292,2684.5,2684.0,3.7257]
[1739942926319,4.00913292,2684.5,2684.1,0.07490585]
[1739942926622,3.72517,2684.5,2684.1,0.07490585]
[1739942927390,3.72517,2684.5,2684.2,0.0384]
[1739942927586,3.0,2684.5,2684.2,0.0384]
[1739942927909,7.44974,2684.7,2684.3,0.07470567]
[1739942928101,6.21404819,2684.7,2684.2,0.0384]
[1739942928297,6.21390819,2684.8,2684.3,0.07450819]
[1739942928504,6.21390819,2684.8,2684.2,3.76389]
[1739942928689,6.21390819,2684.8,2684.3,0.07450819]
[1739942928892,6.21390819,2684.8,2684.2,0.0384]
[1739942929097,7.44975,2684.7,2684.3,0.07450819]
[1739942929394,2.48921819,2684.5,2684.2,0.0384]
[1739942929729,2.48921819,2684.5,2684.3,0.07450819]
[1739942929931,2.48921819,2684.5,2684.2,0.0384]
[1739942930133,2.48921819,2684.5,2684.3,0.07450819]
[1739942930328,2.48921819,2684.5,2684.2,0.0384]
[1739942930627,2.48921819,2684.5,2684.3,0.07450819]
[1739942931127,2.48921819,2684.5,2684.4,0.07441093]
[1739942931304,2.48921819,2684.5,2684.3,0.7588347]
[1739942931629,6.21431819,2684.5,2684.4,0.07441093]
[1739942932329,2.48921819,2684.5,2684.4,0.07441093]
[1739942934527,3.26731819,2684.5,2684.4,0.07441093]
[1739942934714,6.99239819,2684.5,2684.4,0.07441093]
[1739942934896,3.26731819,2684.5,2684.4,0.07441093]
[1739942935091,10.69161201,2684.5,2684.4,0.07441093]
[1739942935299,3.72542,2684.3,2683.8,0.0384]
[1739942935620,2.48921819,2684.4,2683.9,3.79758781]
[1739942936028,6.21452819,2684.4,2683.9,0.07167781]
[1739942937042,3.72536,2684.3,2683.9,0.07167781]
[1739942937343,3.72559,2684.2,2683.9,0.07167781]
[1739942937642,3.72536,2684.3,2684.0,0.7632932]
[1739942938031,3.72536,2684.3,2683.6,0.0384]
[1739942938032,3.72592,2683.9,2683.6,0.0384]
[1739942938339,3.72592,2683.9,2683.5,0.271]
[1739942938340,2.48921819,2683.8,2683.5,0.271]
[1739942938541,2.48921819,2683.8,2683.6,0.7644135]
[1739942941543,6.21527819,2683.8,2683.6,0.7644135]
[1739942941756,2.48921819,2683.8,2683.6,0.7644135]
[1739942942242,6.99587819,2683.8,2683.6,0.7644135]
[1739942943645,3.26971819,2683.8,2683.6,0.7644135]
[1739942943842,2.48921819,2683.8,2683.6,0.7644135]
[1739942944346,6.21528819,2683.8,2683.6,0.7644135]
[1739942944657,6.21528819,2683.8,2683.7,0.0719625]
[1739942944944,6.21528819,2683.8,2683.0,0.271]
[1739942944945,4.50734,2683.3,2683.0,0.271]
[1739942945113,2.48921819,2683.1,2683.0,0.271]
[1739942945509,3.72718,2683.0,2682.6,0.0384]
[1739942945728,2.48921819,2683.1,2682.8,0.73379897]
[1739942946457,3.72726,2683.0,2682.8,0.73379897]
[1739942946841,2.48921819,2683.1,2682.8,0.73379897]
[1739942947042,6.21636819,2683.1,2682.8,0.73379897]
[1739942947350,5.48921819,2683.1,2682.8,0.73379897]
[1739942947655,3.72718,2683.0,2682.8,0.73379897]
[1739942949356,3.0,2683.1,2682.8,0.77219897]
[1739942950039,2.48921819,2683.2,2682.8,0.77219897]
[1739942950257,4.55607,2683.6,2683.1,3.727]
[1739942950467,2.48921819,2683.5,2683.1,3.727]
[1739942950761,5.48921819,2683.5,2683.1,3.727]
[1739942951167,2.48921819,2683.5,2683.2,3.76524]
[1739942951567,5.80897882,2683.8,2683.2,0.0384]
[1739942951568,2.48921819,2683.8,2683.2,0.0384]
[1739942951868,5.48921819,2684.1,2683.7,0.0384]
[1739942952184,2.48921819,2684.1,2683.7,0.0384]
[1739942952377,3.27801819,2684.4,2683.8,3.72592]
[1739942952580,3.27801819,2684.4,2683.9,0.06535929]
[1739942952781,7.00325819,2684.4,2683.9,0.06535929]
[1739942953348,3.27801819,2684.4,2683.9,0.06535929]
[1739942953747,7.00324819,2684.4,2683.9,0.06535929]
[1739942954177,3.27801819,2684.4,2683.9,0.06535929]
[1739942954980,5.48921819,2684.4,2683.9,0.06535929]
[1739942955368,3.0,2684.4,2684.0,3.72568]
[1739942955573,3.28371819,2684.8,2684.2,3.7254]
[1739942955770,2.48921819,2684.8,2684.3,3.78987454]
[1739942956083,3.27468334,2684.8,2684.4,0.0384]
[1739942956481,3.27468334,2684.8,2684.5,0.06433623]
[1739942958489,2.48921819,2685.2,2684.6,3.72484]
[1739942958693,2.48921819,2685.2,2684.7,3.7248]
[1739942958853,2.48921819,2685.2,2684.7,3.78786021]
[1739942959056,5.48921819,2685.2,2684.7,3.78786021]
[1739942959470,5.48921819,2685.2,2684.7,4.55176802]
[1739942959670,6.51832206,2685.2,2684.7,4.55176802]
[1739942959875,10.24245206,2685.2,2684.7,0.82696802]
[1739942960066,6.51832206,2685.2,2684.7,0.82696802]
[1739942960387,2.48921819,2684.9,2684.7,0.82696802]
[1739942969064,3.0,2685.1,2684.7,0.82696802]
[1739942969901,6.21339819,2685.2,2684.7,0.82696802]
[1739942971596,9.93762819,2685.2,2684.7,0.82696802]
[1739942971766,6.21339819,2685.2,2684.7,0.82696802]
[1739942973623,6.21339819,2685.2,2684.8,0.0384]
[1739942973823,6.21339819,2685.2,2684.8,0.10119972]
[1739942976680,5.48921819,2685.2,2684.8,0.10119972]
[1739942976885,9.21332819,2685.2,2684.8,0.10119972]
[1739942977419,3.0,2685.3,2684.8,3.82578972]
[1739942977585,3.0,2685.3,2684.9,3.72451]
[1739942977787,3.0,2685.3,2685.0,0.06260529]
[1739942978209,6.72401,2685.3,2685.0,0.06260529]
[1739942978421,6.72401,2685.3,2684.8,0.0384]
[1739942978787,6.72401,2685.3,2684.9,0.0627025]
[1739942980617,3.0,2685.3,2684.9,0.0627025]
[1739942980824,3.72416,2685.2,2684.9,0.0627025]
[1739942983239,3.0,2685.3,2684.9,0.0627025]
[1739942983443,3.72412,2685.2,2684.8,0.0384]
[1739942983730,3.72412,2685.2,2685.0,0.06236884]
[1739942984029,6.72412,2685.2,2685.1,0.06227163]
[1739942984335,3.0,2685.2,2684.8,0.0384]
[1739942984510,3.0,2685.2,2685.1,0.06227163]
[1739942985038,3.0,2685.2,2684.8,0.0384]
[1739942985200,3.0,2685.2,2685.1,0.06227163]
[1739942985401,6.72411,2685.2,2684.8,0.0384]
[1739942985609,3.0,2685.2,2684.9,0.06246605]
[1739942988227,3.0,2685.2,2684.9,3.78695605]
[1739942988740,3.0,2685.2,2684.9,0.06246605]
[1739942988910,3.0,2685.2,2684.9,3.78693605]
[1739942989111,3.0,2685.2,2684.9,0.06246605]
[1739942990407,3.0,2685.2,2684.9,3.78694605]
[1739942990743,6.21305819,2685.4,2684.9,3.78694605]
[1739942990903,6.21305819,2685.4,2684.9,0.06246605]
[1739942992343,6.21305819,2685.4,2684.9,3.78699605]
[1739942992708,2.48921819,2685.4,2684.9,3.78699605]
[1739942993446,6.21306819,2685.4,2684.9,3.78699605]
[1739942993741,3.72385,2685.4,2684.9,3.78699605]
[1739942994145,5.48921819,2685.5,2685.0,3.72437]
[1739942994341,9.21294819,2685.5,2684.9,7.51142605]
[1739942994647,5.48921819,2685.5,2685.0,3.78669509]
[1739942995441,5.48921819,2685.5,2685.1,3.72418]
[1739942995643,5.48921819,2685.5,2685.2,3.78624068]
[1739942995847,3.72315,2685.9,2685.4,3.72382]
[1739942996045,7.91002719,2686.0,2685.4,7.44756]
[1739942996224,7.91002719,2686.0,2685.5,0.05922856]
[1739942996632,6.72317,2685.9,2685.5,0.05922856]
[1739942996828,3.0,2686.0,2685.6,0.0384]
[1739942997027,3.72323,2685.9,2685.7,0.79646649]
[1739942997813,3.72328,2685.8,2685.7,0.05863736]
[1739942998014,3.72328,2685.8,2685.3,0.27]
[1739942998015,3.72371,2685.5,2685.3,0.27]
[1739942998219,6.21292819,2685.5,2685.4,0.7989977]
[1739942998419,7.00032819,2685.5,2685.4,0.05892888]
[1739942998614,3.72396,2685.4,2685.1,5.36]
[1739942998844,3.72396,2685.4,2685.2,0.05912325]
[1739942999348,3.72397,2685.3,2685.2,0.05912325]
[1739942999760,3.72416,2685.2,2684.9,0.27]
[1739942999943,6.21355819,2685.1,2684.9,0.27]
[1739943000129,6.96685819,2685.1,2684.9,0.27]
[1739943000325,6.96685819,2685.1,2684.5,8.4134]
[1739943000326,3.72452,2685.0,2684.5,8.4134]
[1739943000532,3.7245,2685.0,2684.9,0.7346189]
[1739943002318,6.96677819,2685.1,2684.9,0.7346189]
[1739943003672,3.24251819,2685.1,2684.9,0.7346189]
[1739943003843,3.0,2685.3,2684.9,0.7730189]
[1739943004743,3.0,2685.3,2684.9,4.53478124]
[1739943004942,2.54603604,2685.3,2684.9,4.53478124]
[1739943005139,2.54603604,2685.3,2684.9,4.4975389]
[1739943005360,2.48921819,2685.4,2684.9,8.2219789]
[1739943005671,2.48921819,2685.4,2684.9,4.4974589]
[1739943006057,2.48921819,2685.4,2684.9,0.7730189]
[1739943006550,3.72406,2685.3,2684.9,0.7730189]
[1739943006757,3.72439,2685.0,2684.9,0.7346189]
[1739943006954,6.21347819,2685.1,2684.9,0.7346189]
[1739943007158,9.93784819,2685.1,2684.9,0.7346189]
[1739943007629,2.48921819,2685.1,2684.9,0.7346189]
[1739943007829,3.0,2685.2,2684.9,0.7730189]
[1739943008026,5.48921819,2685.4,2684.9,4.4975389]
[1739943008533,3.0,2685.4,2684.9,4.4974589]
[1739943008734,6.72397,2685.4,2684.9,0.7730189]
[1739943009038,4.52487,2685.5,2684.9,4.4974289]
[1739943009569,4.52487,2685.5,2685.0,3.72436]
[1739943009869,3.72377,2685.5,2685.0,3.72436]
[1739943010232,3.0,2685.6,2685.1,3.72423]
[1739943010444,6.72357,2685.6,2685.1,3.72423]
[1739943010865,3.26501819,2685.7,2685.2,3.72399]
[1739943011073,5.48921819,2685.8,2685.3,3.76233]
[1739943011376,2.48921819,2685.8,2685.3,3.76233]
[1739943011581,2.48921819,2685.8,2685.4,0.0372333]
[1739943011871,2.48921819,2685.8,2685.3,3.76233]
[1739943013166,3.72324,2685.9,2685.4,0.07563335]
[1739943013347,3.72328,2685.8,2685.4,0.0384]
[1739943013743,3.72324,2685.9,2685.4,0.0384]
[1739943013979,2.48921819,2686.0,2685.5,3.72367]
[1739943014164,5.48921819,2686.0,2685.5,3.72367]
[1739943014352,5.48921819,2686.0,2685.4,3.76221]
[1739943014560,5.48921819,2686.0,2685.6,3.72354]
[1739943014789,9.21223819,2686.0,2685.4,3.76221]
[1739943014975,9.21223819,2686.0,2685.7,0.75099949]
[1739943015577,2.48921819,2686.0,2685.7,4.47433949]
[1739943015781,2.48921819,2686.0,2685.8,0.0384]
[1739943016086,3.0,2686.2,2685.8,0.0384]
[1739943016287,3.0,2686.2,2685.8,0.07562892]
[1739943016787,0.45396467,2687.1,2685.8,0.07562892]
[1739943016788,7.44424,2686.7,2686.1,3.72283]
[1739943017089,3.72239,2686.5,2686.0,0.3084]
[1739943017386,7.44479,2686.5,2686.0,0.3084]
[1739943017545,3.72239,2686.5,2686.0,0.3084]
[1739943017746,3.72239,2686.5,2686.1,0.05846789]
[1739943018885,6.72219,2686.6,2686.1,3.78124789]
[1739943019182,6.72219,2686.6,2686.1,0.05846789]
[1739943019383,3.0,2686.6,2686.1,0.05846789]
[1739943019578,3.72231,2686.5,2686.1,0.05846789]
[1739943020800,3.72249,2686.4,2686.1,0.05846789]
[1739943021096,0.1840596,2687.0,2686.1,0.05846789]
[1739943021097,3.72162,2687.0,2686.2,0.0384]
[1739943021306,3.72162,2687.0,2686.4,7.4447]
[1739943021478,3.72162,2687.0,2686.5,0.03721915]
[1739943021684,6.72178,2686.9,2686.6,0.0384]
[1739943021860,9.21099819,2686.9,2686.6,0.0384]
[1739943022198,2.48921819,2686.9,2686.7,0.05686307]
[1739943022361,6.21107819,2686.9,2686.7,0.05686307]
[1739943022699,9.21107819,2686.9,2686.8,0.05676598]
[1739943023050,9.21107819,2686.9,2686.3,0.77585167]
[1739943023402,9.21107819,2686.9,2686.4,0.05715436]
[1739943024179,5.48921819,2686.9,2686.4,0.05715436]
[1739943024366,9.21097819,2686.9,2686.4,0.05715436]
[1739943024771,5.48921819,2686.9,2686.4,0.05715436]
[1739943025360,5.48921819,2686.9,2686.4,3.77951436]
[1739943025560,5.48921819,2686.9,2686.4,0.05715436]
[1739943025767,5.48921819,2686.9,2686.6,0.0384]
[1739943026164,5.48921819,2686.9,2686.7,3.77888307]
[1739943026352,3.0,2686.9,2686.7,0.05686307]
[1739943027486,2.48921819,2687.2,2686.7,3.8159904]
[1739943027660,2.48921819,2687.5,2686.8,4.03021]
[1739943027861,6.21021819,2687.5,2686.9,0.05611316]
[1739943028076,3.72118,2687.4,2686.9,0.05611316]
[1739943028279,3.72136,2687.2,2686.9,0.05611316]
[1739943028581,3.72134,2687.3,2686.9,0.05611316]
[1739943028788,3.72134,2687.2,2686.9,0.05611316]
[1739943029288,6.21021819,2687.5,2686.9,0.09332641]
[1739943029462,2.48921819,2687.5,2687.0,3.72157]
[1739943029824,2.48921819,2687.5,2686.9,4.56516232]
[1739943029825,2.48921819,2687.5,2687.1,0.05591903]
[1739943029952,3.72107,2687.4,2687.1,0.05591903]
[1739943030153,3.72123,2687.3,2687.2,0.05582198]
[1739943030389,6.21024819,2687.5,2687.2,0.05582198]
[1739943030589,9.93125819,2687.5,2686.9,4.47194772]
[1739943030790,6.21022819,2687.5,2687.3,0.05572493]
[1739943031091,9.21022819,2687.5,2687.4,0.05562789]
[1739943031594,9.21022819,2687.5,2687.4,0.05549881]
[1739943031891,3.72112,2687.4,2686.9,0.75019772]
[1739943032088,6.21061819,2687.2,2686.9,0.75019772]
[1739943032299,3.72156,2687.1,2687.0,0.27]
[1739943032493,6.21061819,2687.2,2687.0,0.27]
[1739943032793,3.7217,2687.0,2686.6,5.36]
[1739943032993,3.7217,2687.0,2686.6,0.27]
[1739943033188,0.7709,2687.1,2686.6,0.27]
[1739943033492,3.72163,2687.0,2686.6,1.01761822]
[1739943034395,6.21060819,2687.2,2686.8,0.0384]
[1739943034698,6.21097819,2686.9,2686.6,1.01761822]
[1739943035480,2.48921819,2686.9,2686.6,1.01761822]
[1739943035801,3.72157,2687.1,2686.6,1.01761822]
[1739943036175,3.72157,2687.1,2686.6,4.73978822]
[1739943036376,6.21063819,2687.2,2686.6,1.01761822]
[1739943036706,3.72166,2687.0,2686.6,1.01761822]
[1739943036995,6.21063819,2687.2,2686.7,0.03721651]
[1739943037166,6.21063819,2687.2,2686.6,1.01761822]
[1739943037366,2.48921819,2687.2,2686.9,0.0384]
[1739943037570,5.48921819,2687.5,2686.9,3.76006]
[1739943037803,9.21014819,2687.5,2686.9,3.76006]
[1739943038502,3.72108,2687.4,2686.9,0.0384]
[1739943038799,3.72108,2687.4,2686.9,3.76013]
[1739943038979,5.48921819,2687.5,2686.9,7.48175]
[1739943039181,4.52789,2687.8,2687.1,3.72145]
[1739943039501,6.20980819,2687.8,2687.2,3.79686656]
[1739943039821,3.0,2687.7,2687.3,3.72111]
[1739943040024,5.48921819,2687.8,2687.4,0.03720652]
[1739943040318,3.72028,2688.0,2687.5,3.72089]
[1739943040619,6.20931819,2688.1,2687.6,0.0384]
[1739943040911,5.48921819,2688.1,2687.6,0.0384]
[1739943041277,5.48921819,2688.1,2687.6,3.7591]
[1739943041466,5.48921819,2688.1,2687.8,0.74144535]
[1739943041668,3.0,2688.2,2687.8,0.74144535]
[1739943042689,3.0,2688.2,2687.9,0.05273125]
[1739943042901,2.48921819,2688.3,2687.9,0.05273125]
[1739943043203,2.48921819,2688.3,2688.0,0.0384]
[1739943043382,2.48921819,2688.3,2688.1,0.05185939]
[1739943044799,6.20904819,2688.3,2688.1,0.05185939]
[1739943045180,2.48921819,2688.3,2688.1,0.05185939]
[1739943046608,6.20913819,2688.3,2688.1,0.05185939]
[1739943047193,2.48921819,2688.3,2688.1,0.05185939]
[1739943048029,0.005,2688.4,2688.1,0.05185939]
[1739943048529,0.005,2688.4,2688.2,0.0384]
[1739943048723,0.005,2688.4,2688.1,5.68185939]
[1739943048724,3.72478,2688.4,2688.1,5.68185939]
[1739943049013,3.72478,2688.4,2688.2,0.05157199]
[1739943050117,7.44457,2688.4,2688.2,0.05157199]
[1739943050315,3.71982,2688.3,2688.2,0.05157199]
[1739943050613,6.20903819,2688.3,2688.2,0.05157199]
[1739943050778,3.72478,2688.4,2688.2,0.08997199]
[1739943050978,3.71982,2688.3,2688.2,0.05157199]
[1739943051182,3.72052,2687.8,2687.7,0.27]
[1739943051420,3.72065,2687.7,2687.5,0.0384]
[1739943051613,3.72098,2687.5,2687.3,5.36]
[1739943051793,6.20986819,2687.7,2687.3,5.36]
[1739943051794,9.93064819,2687.7,2687.3,5.36]
[1739943051993,6.20986819,2687.7,2687.3,5.36]
[1739943052221,6.20986819,2687.7,2687.4,0.75659427]
[1739943052511,2.47896819,2687.7,2687.4,0.75659427]
[1739943053087,6.19963819,2687.7,2687.4,0.75659427]
[1739943053984,2.47896819,2687.7,2687.4,0.75659427]
[1739943056103,3.72024,2688.0,2687.5,0.07560539]
[1739943056311,3.72024,2688.0,2687.5,3.79650539]
[1739943056616,3.72024,2688.0,2687.5,0.07560539]
[1739943057117,3.72037,2687.9,2687.5,0.0384]
[1739943057335,6.20932819,2688.1,2687.5,0.0384]
[1739943057516,5.48921819,2688.1,2687.5,0.0384]
[1739943057718,3.0,2688.1,2687.6,0.08819685]
[1739943057883,6.72012,2688.1,2687.6,3.80885685]
[1739943058088,3.0,2688.1,2687.6,0.08819685]
[1739943058295,3.72025,2688.0,2687.6,0.08819685]
[1739943058602,3.72041,2687.9,2687.6,0.35819685]
[1739943058920,2.48921819,2688.0,2687.6,0.35819685]
[1739943059107,3.72002,2688.2,2687.6,4.07893685]
[1739943059311,7.44008,2688.2,2687.6,4.07893685]
[1739943059618,2.48921819,2688.3,2687.6,0.35819685]
[1739943059947,3.72472,2688.4,2687.9,3.72037]
[1739943059948,3.72473,2688.4,2687.9,3.72037]
[1739943060123,3.72473,2688.4,2688.0,0.0384]
[1739943060283,3.72473,2688.4,2688.0,0.08780882]
[1739943060727,3.71997,2688.2,2688.0,0.04940882]
[1739943060894,3.72009,2688.1,2688.0,0.04940882]
[1739943061250,3.72037,2687.9,2687.8,5.36]
[1739943061464,6.20958819,2687.9,2687.8,5.36]
[1739943061806,3.72016,2688.1,2687.8,5.3984]
[1739943062003,3.72037,2687.9,2687.8,5.36]
[1739943062211,4.49467,2687.9,2687.8,5.36]
[1739943062533,6.20958819,2687.9,2687.8,5.36]
[1739943064041,3.72116,2687.4,2687.1,0.0384]
[1739943064231,3.72131,2687.3,2687.1,0.0384]
[1739943064541,7.44263,2687.3,2687.1,0.0384]
[1739943064710,3.72131,2687.3,2687.1,0.77049936]
[1739943064910,2.48921819,2687.4,2687.1,0.73209936]
[1739943065318,6.21036819,2687.4,2687.1,0.73209936]
[1739943065642,2.48921819,2687.4,2687.1,0.73209936]
[1739943066016,6.21034819,2687.4,2687.1,0.73209936]
[1739943066225,6.21034819,2687.4,2686.9,5.6684]
[1739943066416,3.72134,2687.2,2686.9,5.6684]
[1739943066616,6.21034819,2687.4,2686.9,5.6684]
[1739943066817,3.72122,2687.3,2686.9,5.6684]
[1739943067113,6.21034819,2687.4,2686.9,5.6684]
[1739943067337,3.72135,2687.2,2687.0,0.73475324]
[1739943067700,6.21034819,2687.4,2687.0,0.73475324]
[1739943067701,6.21033819,2687.4,2687.0,0.73475324]
[1739943068043,3.72122,2687.3,2687.0,0.73475324]
[1739943068957,3.72143,2687.2,2687.0,0.73475324]
[1739943069108,3.72143,2687.2,2686.9,5.36]
[1739943069300,3.72189,2686.8,2686.7,0.75467193]
[1739943069613,3.72226,2686.6,2686.3,5.3984]
[1739943070125,6.21112819,2686.8,2686.3,5.3984]
[1739943070312,3.72214,2686.7,2686.3,5.3984]
[1739943070945,3.72214,2686.7,2686.4,0.73930395]
[1739943071109,6.7218,2686.9,2686.4,0.73930395]
[1739943071110,3.7218,2686.9,2686.4,0.73930395]
[1739943071306,3.72193,2686.8,2686.4,0.73930395]
[1739943071607,3.29421819,2687.1,2686.5,3.7223]
[1739943071608,6.21075819,2687.1,2686.5,3.7223]
[1739943071806,3.0,2687.3,2686.8,3.72187]
[1739943072016,6.96939819,2687.4,2686.9,3.76012]
[1739943072017,2.48921819,2687.4,2686.9,3.76012]
[1739943072213,2.48921819,2687.4,2686.9,0.0384]
[1739943072619,6.21029819,2687.4,2687.0,0.05172728]
[1739943072938,2.48921819,2687.4,2687.0,0.05172728]
[1739943073240,3.7591,2687.7,2687.0,0.05172728]
[1739943073241,6.21069819,2687.1,2687.0,0.05172728]
[1739943075527,2.48921819,2687.1,2687.0,0.05172728]
[1739943075738,6.21069819,2687.1,2687.0,0.05172728]
[1739943076107,2.48921819,2687.1,2687.0,0.05172728]
[1739943076442,6.21069819,2687.1,2687.0,0.05172728]
[1739943077099,2.48921819,2687.1,2687.0,0.05172728]
[1739943077299,6.21069819,2687.1,2687.0,0.05172728]
[1739943077926,6.96979819,2687.1,2687.0,0.05172728]
[1739943078850,3.24831819,2687.1,2686.6,0.27]
[1739943079056,9.96979819,2687.1,2687.0,0.04979416]
[1739943079228,3.72207,2686.7,2686.5,5.6684]
[1739943079425,3.72207,2686.7,2686.5,5.3984]
[1739943079629,3.7218,2686.9,2686.5,5.3984]
[1739943079852,7.44368,2686.9,2686.5,5.3984]
[1739943080560,7.44369,2686.9,2686.5,6.15160082]
[1739943081118,9.21075819,2687.1,2686.6,3.72215]
[1739943081355,6.72154,2687.1,2686.6,3.72215]
[1739943081651,6.72154,2687.1,2686.5,9.87383082]
[1739943082157,3.72154,2687.1,2686.5,9.87383082]
[1739943082366,3.72154,2687.1,2686.6,3.72215]
[1739943083374,3.72124,2687.3,2686.8,3.72189]
[1739943083556,2.48921819,2687.4,2686.8,9.08182]
[1739943083557,6.21029819,2687.4,2686.8,9.08182]
[1739943083854,3.0,2687.4,2687.0,3.72162]
[1739943084041,3.0,2687.4,2687.1,0.0384]
[1739943084638,6.20993819,2687.7,2687.1,0.0384]
[1739943084842,6.20993819,2687.7,2687.1,0.3084]
[1739943085018,9.93069819,2687.7,2687.1,4.02987]
[1739943085219,9.93069819,2687.7,2687.1,0.3084]
[1739943085421,3.72108,2687.4,2687.0,0.73105763]
[1739943085624,2.48921819,2687.4,2687.0,0.73105763]
[1739943085817,3.0,2687.5,2687.0,0.73105763]
[1739943085818,3.72093,2687.5,2687.0,0.73105763]
[1739943086123,3.72109,2687.4,2687.1,0.0384]
[1739943086532,3.72093,2687.5,2687.1,0.0384]
[1739943087038,3.72113,2687.4,2687.1,0.0384]